lending/lending_fUSD_20240410
["ID","MTS","AMOUNT","RATE_DAILY","PERIOD"]
[322107424,1712782244203,-19311.62545863,0.0003,4]
[322107426,1712782244213,-405.59680121,0.0003,4]
[322107428,1712782244222,-9719.19260393,0.0003,2]
[322107430,1712782244231,-6939.13491161,0.0003,2]
[322107432,1712782244240,-23722.27564431,0.0003,4]
[322107434,1712782244249,-76330.13363857,0.0003,4]
[322107436,1712782244258,-155.0,0.00030001,2]
[322107438,1712782244268,-1602.90737803,0.00030001,4]
[322107440,1712782244277,-224.37683634,0.00030001,4]
[322107442,1712782244286,-2967.73802212,0.00030001,4]
[322107444,1712782244295,-219.25888395,0.00030001,2]
[322107446,1712782244304,-594.70721441,0.00030001,2]
[322107448,1712782244313,-448.62769266,0.00030001,7]
[322107450,1712782244322,-152.94150947,0.00030128,2]
[322107452,1712782244331,-1000.0,0.000306,2]
[322107454,1712782244340,-314.041105,0.00030748,7]
[322107456,1712782244349,-157.041105,0.00030748,5]
[322107458,1712782244359,-628.041105,0.00030848,8]
[322107460,1712782244369,-6924.06841522,0.00030888,2]
[322107462,1712782244378,-152.94150947,0.00030909,2]
[322107464,1712782244387,-200.0,0.00030949,2]
[322107466,1712782244396,-1000.0,0.00030949,8]
[322107468,1712782244405,-200.0,0.00030949,7]
[322107470,1712782244415,-500.0,0.00030949,2]
[322107472,1712782244424,-490.69655097,0.00031,4]
[322107474,1712782244434,-500.0,0.00031,3]
[322107476,1712782244443,-2281.75607075,0.00031199,2]
[322107478,1712782244452,-6422.62909543,0.000312,2]
[322107480,1712782244461,-150.0,0.000312,2]
[322107482,1712782244470,-222.65123,0.000312,2]
[322107484,1712782244479,-1000.0,0.00031247,2]
[322107486,1712782244487,-348.08,0.00031352,2]
[322107488,1712782244496,-5226.05,0.00031426,2]
[322107490,1712782244505,-524.0,0.00031643,2]
[322107492,1712782244514,-152.94150947,0.00031689,2]
[322107494,1712782244523,-314.041105,0.00031748,8]
[322107496,1712782244532,-449.81,0.00031786,2]
[322107498,1712782244541,-628.041105,0.00031848,9]
[322107500,1712782244551,-1092.55772206,0.00031938,4]
[322107502,1712782244560,-5000.0,0.00032,7]
[322107504,1712782244569,-332.11656254,0.00032,4]
[322107506,1712782244579,-1000.0,0.00032,3]
[322107508,1712782244588,-600.25589965,0.00032,2]
[322107510,1712782244596,-520.51,0.00032057,2]
[322107512,1712782244605,-267.64,0.00032057,2]
[322107514,1712782244614,-150.0,0.00032057,2]
[322107516,1712782244625,-417.92,0.00032057,2]
[322107518,1712782244634,-150.0,0.00032057,2]
[322107520,1712782244643,-150.0,0.00032057,2]
[322107522,1712782244652,-150.0,0.00032057,2]
[322107525,1712782244670,-349.36,0.00032057,2]
[322107528,1712782244681,-150.0,0.00032057,2]
[322107530,1712782244690,-181.34,0.00032057,2]
[322107532,1712782244699,-162.27,0.00032057,2]
[322107534,1712782244708,-520.51,0.00032057,2]
[322107536,1712782244717,-417.92,0.00032057,2]
[322107538,1712782244727,-150.0,0.00032057,2]
[322107540,1712782244736,-150.0,0.00032057,2]
[322107542,1712782244746,-150.0,0.00032057,2]
[322107544,1712782244755,-150.0,0.00032057,2]
[322107546,1712782244765,-349.36,0.00032057,2]
[322107548,1712782244774,-150.0,0.00032057,2]
[322107550,1712782244783,-150.0,0.00032057,2]
[322107552,1712782244792,-162.27,0.00032057,2]
[322107554,1712782244801,-150.0,0.00032057,2]
[322107556,1712782244811,-150.0,0.00032057,2]
[322107558,1712782244821,-150.0,0.00032057,2]
[322107560,1712782244830,-520.51,0.00032057,2]
[322107562,1712782244840,-349.36,0.00032057,2]
[322107564,1712782244849,-150.0,0.00032057,2]
[322107566,1712782244859,-162.27,0.00032057,2]
[322107568,1712782244869,-150.0,0.00032057,2]
[322107570,1712782244878,-417.92,0.00032057,2]
[322107572,1712782244887,-150.0,0.00032057,2]
[322107574,1712782244896,-150.0,0.00032057,2]
[322107576,1712782244905,-150.0,0.00032057,2]
[322107578,1712782244915,-150.0,0.00032057,2]
[322107580,1712782244925,-150.0,0.00032057,2]
[322107582,1712782244934,-519.12,0.00032057,2]
[322107584,1712782244944,-150.0,0.00032057,2]
[322107586,1712782244954,-162.27,0.00032057,2]
[322107588,1712782244963,-150.0,0.00032057,2]
[322107590,1712782244972,-162.27,0.00032057,2]
[322107592,1712782244982,-150.0,0.00032057,2]
[322107594,1712782244993,-150.0,0.00032057,2]
[322107596,1712782245005,-150.0,0.00032057,2]
[322107598,1712782245014,-150.0,0.00032057,2]
[322107600,1712782245024,-150.0,0.00032057,2]
[322107602,1712782245034,-303.84,0.00032057,2]
[322107604,1712782245043,-150.0,0.00032057,2]
[322107606,1712782245053,-8545.13830473,0.00032179,2]
[322107609,1712782245063,-8545.13830472,0.00032179,2]
[322107611,1712782245073,-8545.13830472,0.00032179,2]
[322107613,1712782245082,-10554.1618073,0.00032203,4]
[322107614,1712782245092,-56349.85009351,0.00032422,3]
[322107616,1712782245101,-28225.21360752,0.00032433,3]
[322107619,1712782245111,-152.94150947,0.0003247,2]
[322107620,1712782245120,-2186.85,0.00032603,2]
[322107622,1712782245130,-1942.12,0.00032603,2]
[322107625,1712782245140,-314.041105,0.00032748,9]
[322107627,1712782245149,-628.041105,0.00032848,10]
[322107629,1712782245158,-524.0,0.00032876,2]
[322107631,1712782245168,-150.0,0.00032877,2]
[322107633,1712782245178,-5800.0,0.00032877,2]
[322107635,1712782245187,-5800.0,0.00032877,2]
[322107637,1712782245200,-150.0,0.00032879,2]
[322107639,1712782245210,-1000.0,0.000329,12]
[322107641,1712782245220,-56001.74897674,0.0003295,10]
[322107643,1712782245230,-48691.9725964,0.0003295,2]
[322107646,1712782245240,-206.3730658,0.0003295,2]
[322107648,1712782245250,-674.85171412,0.0003295,10]
[322107650,1712782245259,-2141.16530602,0.0003295,10]
[322107652,1712782245269,-827.22950323,0.0003295,10]
[322107654,1712782245279,-500.0,0.0003295,10]
[322107656,1712782245288,-10575.73899547,0.0003295,20]
[322107658,1712782245298,-23082.80114468,0.0003295,2]
[322107660,1712782245307,-352.39417349,0.0003295,5]
[322107662,1712782245317,-1000.0,0.00033,2]
[322107664,1712782245328,-10000.0,0.00033,2]
[322107666,1712782245338,-550.0,0.00033,3]
[322107668,1712782245348,-6291.83960136,0.00033162,2]
[322107670,1712782245357,-330.71,0.00033165,2]
[322107672,1712782245367,-298.67,0.00033165,2]
[322107675,1712782245378,-1500.0,0.0003322,2]
[322107677,1712782245388,-152.94150947,0.0003325,2]
[322107679,1712782245397,-379.98789302,0.0003335,2]
[322107681,1712782245407,-1000.0,0.000334,12]
[322107683,1712782245417,-153.13,0.000335,2]
[322107685,1712782245427,-153.13,0.000335,2]
[322107687,1712782245437,-150.0,0.000337,2]
[322107689,1712782245447,-150.0,0.000337,2]
[322107691,1712782245457,-150.0,0.000337,2]
[322107694,1712782245467,-150.0,0.000337,2]
[322107696,1712782245476,-150.0,0.000337,2]
[322107698,1712782245485,-150.0,0.000337,2]
[322107700,1712782245495,-150.0,0.000337,2]
[322107702,1712782245505,-150.0,0.00033742,2]
[322107704,1712782245514,-314.041105,0.00033748,10]
[322107706,1712782245525,-1500.0,0.000338,30]
[322107708,1712782245534,-1500.0,0.000338,30]
[322107710,1712782245543,-1500.0,0.000338,30]
[322107712,1712782245554,-151.22,0.00033844,2]
[322107713,1712782245563,-628.041105,0.00033848,11]
[322107714,1712782245574,-152.94150947,0.00034031,2]
[322107715,1712782245584,-449.81,0.0003405,2]
[322107716,1712782245593,-524.0,0.00034109,2]
[322107717,1712782245602,-316.00688421,0.00034143,7]
[322107718,1712782245611,-152.93894231,0.00034159,7]
[322107720,1712782245621,-221.09477261,0.00034425,7]
[322107722,1712782245630,-151.15859251,0.00034443,7]
[322107724,1712782245640,-152.93894231,0.00034449,7]
[322107727,1712782245650,-151.15859251,0.00034477,7]
[322107730,1712782245660,-10554.1618073,0.00034507,6]
[322107733,1712782245670,-150.0,0.00034548,10]
[322107736,1712782245679,-337.91296202,0.00034605,7]
[322107739,1712782245690,-150.0,0.00034607,2]
[322107741,1712782245699,-337.91296202,0.00034704,7]
[322107743,1712782245709,-1000.0,0.00034719,2]
[322107745,1712782245718,-314.041105,0.00034748,11]
[322107747,1712782245728,-316.00688421,0.00034804,7]
[322107749,1712782245738,-152.94150947,0.00034811,2]
[322107751,1712782245747,-171.75185541,0.00034841,7]
[322107753,1712782245757,-628.041105,0.00034848,12]
[322107755,1712782245767,-152.93894231,0.00034866,7]
[322107757,1712782245776,-221.09477261,0.00034948,7]
[322107759,1712782245786,-199.77633928,0.00034989,7]
[322107761,1712782245796,-150.0,0.00035,20]
[322107763,1712782245806,-6098.0,0.00035,30]
[322107765,1712782245815,-600.0,0.00035,3]
[322107768,1712782245826,-316.00688421,0.00035,7]
[322107770,1712782245837,-150.0,0.00035,14]
[322107772,1712782245846,-150.5479434,0.00035057,7]
[322107774,1712782245856,-154.17814325,0.00035088,7]
[322107776,1712782245865,-155.0000122,0.00035103,7]
[322107778,1712782245876,-152.33080863,0.00035137,7]
[322107780,1712782245886,-316.00688421,0.00035198,7]
[322107782,1712782245895,-337.91296202,0.00035234,7]
[322107784,1712782245905,-352.2,0.00035288,15]
[322107786,1712782245915,-164.21191803,0.00035288,7]
[322107788,1712782245925,-216.14343251,0.00035291,7]
[322107790,1712782245935,-316.00688421,0.00035325,7]
[322107792,1712782245944,-524.0,0.00035342,2]
[322107794,1712782245953,-162.74695872,0.00035358,7]
[322107796,1712782245963,-151.0,0.00035371,2]
[322107798,1712782245973,-316.00688421,0.00035399,7]
[322107800,1712782245982,-316.00688421,0.0003544,7]
[322107802,1712782245993,-150.0,0.00035472,2]
[322107804,1712782246006,-166.7821729,0.00035515,7]
[322107806,1712782246015,-152.94150947,0.00035592,2]
[322107809,1712782246025,-156.73458951,0.00035634,7]
[322107811,1712782246034,-300.0,0.00035652,2]
[322107813,1712782246045,-337.91296202,0.00035666,7]
[322107815,1712782246054,-422.23437662,0.00035687,7]
[322107817,1712782246063,-153.80423253,0.0003571,7]
[322107819,1712782246073,-154.17814325,0.00035729,7]
[322107821,1712782246083,-152.33080863,0.00035741,7]
[322107823,1712782246093,-314.041105,0.00035748,12]
[322107825,1712782246103,-154.17814325,0.00035837,7]
[322107827,1712782246112,-628.041105,0.00035848,13]
[322107829,1712782246121,-221.09477261,0.00035975,7]
[322107831,1712782246130,-316.00688421,0.00036085,7]
[322107833,1712782246140,-216.14343251,0.00036132,7]
[322107835,1712782246149,-152.93894231,0.00036165,7]
[322107837,1712782246158,-316.00688421,0.00036198,7]
[322107839,1712782246167,-222.65123,0.000362,2]
[322107841,1712782246176,-199.77633928,0.0003622,7]
[322107843,1712782246185,-199.77633928,0.00036279,7]
[322107845,1712782246195,-422.23437662,0.00036292,7]
[322107847,1712782246204,-449.81,0.00036314,2]
[322107849,1712782246213,-150.0,0.00036337,2]
[322107864,1712782246339,-216.14343251,0.00036339,7]
[322107867,1712782246364,-152.94150947,0.00036372,2]
[322107869,1712782246373,-176.49461477,0.00036433,7]
[322107871,1712782246382,-155.0000122,0.00036491,7]
[322107873,1712782246392,-152.93894231,0.00036568,7]
[322107875,1712782246401,-524.0,0.00036575,7]
[322107877,1712782246411,-156.73458951,0.00036575,7]
[322107879,1712782246420,-316.00688421,0.00036666,7]
[322107881,1712782246429,-150.5479434,0.00036674,7]
[322107883,1712782246438,-314.041105,0.00036748,13]
[322107885,1712782246447,-156.2657349,0.00036759,7]
[322107887,1712782246456,-10554.1618073,0.00036811,9]
[322107889,1712782246465,-151.15859251,0.00036819,7]
[322107891,1712782246475,-628.041105,0.00036848,14]
[322107893,1712782246484,-152.93894231,0.00036969,7]
[322107895,1712782246494,-650.0,0.00037,3]
[322107897,1712782246503,-199.77633928,0.00037016,7]
[322107899,1712782246512,-175947.01559175,0.00037038,7]
[322107901,1712782246521,-159.29221084,0.00037081,7]
[322107903,1712782246530,-152.94150947,0.00037153,2]
[322107905,1712782246539,-150.0,0.00037203,2]
[322107907,1712782246548,-337.91296202,0.00037299,7]
[322107909,1712782246558,-153.95303214,0.00037326,7]
[322107912,1712782246567,-156.2657349,0.00037349,7]
[322107914,1712782246577,-216.14343251,0.00037358,7]
[322107916,1712782246586,-152.93894231,0.00037378,7]
[322107917,1712782246596,-156.2657349,0.00037477,7]
[322107919,1712782246605,-316.00688421,0.00037574,7]
[322107922,1712782246615,-559.0,0.00037575,20]
[322107923,1712782246624,-357.0,0.00037575,20]
[322107925,1712782246633,-422.23437662,0.00037586,7]
[322107928,1712782246642,-166.78217291,0.00037597,7]
[322107930,1712782246652,-314.041105,0.00037748,14]
[322107932,1712782246661,-166.66666666,0.0003779,7]
[322107934,1712782246670,-524.0,0.00037808,7]
[322107936,1712782246679,-628.041105,0.00037848,15]
[322107938,1712782246688,-152.94150947,0.00037933,2]
[322107940,1712782246698,-559.0,0.00037962,20]
[322107942,1712782246707,-357.0,0.00037962,20]
[322107944,1712782246716,-352.2,0.00038027,15]
[322107946,1712782246725,-152.93894231,0.00038062,7]
[322107948,1712782246737,-422.23437662,0.00038067,7]
[322107950,1712782246746,-150.0,0.00038068,2]
[322107952,1712782246756,-316.00688421,0.00038074,7]
[322107953,1712782246765,-216.14343251,0.00038107,7]
[322107956,1712782246774,-155.0000122,0.00038144,7]
[322107958,1712782246783,-221.09477261,0.00038152,7]
[322107960,1712782246793,-1000.0,0.00038191,2]
[322107961,1712782246802,-216.14343251,0.00038316,7]
[322107963,1712782246812,-559.0,0.0003835,20]
[322107966,1712782246822,-357.0,0.0003835,20]
[322107968,1712782246831,-163.39883742,0.00038392,7]
[322107969,1712782246840,-150.5479434,0.00038415,7]
[322107972,1712782246850,-348.87,0.00038473,2]
[322107973,1712782246859,-162.07,0.00038473,2]
[322107976,1712782246868,-156.73458951,0.00038509,7]
[322107978,1712782246877,-199.77633928,0.00038545,7]
[322107980,1712782246886,-449.81,0.00038578,2]
[322107982,1712782246895,-221.09477261,0.00038623,7]
[322107984,1712782246904,-166.66666666,0.00038683,7]
[322107985,1712782246914,-152.94150947,0.00038714,2]
[322107987,1712782246923,-316.00688421,0.00038724,7]
[322107990,1712782246932,-316.00688421,0.00038727,7]
[322107992,1712782246941,-151.15859251,0.00038729,7]
[322107994,1712782246950,-199.77633928,0.00038733,7]
[322107995,1712782246959,-559.0,0.00038737,20]
[322107998,1712782246969,-315.2952632,0.00038737,20]
[322108000,1712782246978,-1765.16685077,0.00038737,20]
[322108002,1712782246988,-357.0,0.00038737,20]
[322108004,1712782247001,-634.75929019,0.00038737,20]
[322108006,1712782247010,-152.33080863,0.00038744,7]
[322108008,1712782247019,-314.041105,0.00038748,15]
[322108010,1712782247029,-153.13,0.000388,3]
[322108012,1712782247040,-153.13,0.000388,3]
[322108014,1712782247048,-337.91296202,0.00038811,7]
[322108016,1712782247057,-316.00688421,0.0003882,7]
[322108018,1712782247067,-628.041105,0.00038848,16]
[322108019,1712782247077,-199.77633928,0.00038868,7]
[322108022,1712782247086,-4070.38027107,0.000389,15]
[322108023,1712782247096,-166.66666666,0.00038911,7]
[322108026,1712782247105,-337.91296202,0.00038924,7]
[322108028,1712782247115,-330.71,0.00038933,2]
[322108030,1712782247124,-298.67,0.00038933,2]
[322108032,1712782247133,-150.0,0.00038933,2]
[322108034,1712782247142,-221.09477261,0.00038945,7]
[322108036,1712782247151,-150.0,0.00038999,2]
[322108038,1712782247161,-6000.0,0.00039,30]
[322108040,1712782247170,-700.0,0.00039,3]
[322108042,1712782247179,-154.17814325,0.00039012,7]
[322108044,1712782247188,-150.0,0.00039021,2]
[322108046,1712782247197,-524.0,0.00039041,7]
[322108048,1712782247208,-10554.1618073,0.00039115,12]
[322108050,1712782247217,-559.0,0.00039125,20]
[322108052,1712782247226,-357.0,0.00039125,20]
[322108054,1712782247235,-166.66666666,0.00039245,7]
[322108056,1712782247245,-422.23437662,0.00039307,7]
[322108058,1712782247254,-337.91296202,0.00039358,7]
[322108060,1712782247263,-422.23437662,0.00039368,7]
[322108062,1712782247272,-316.00688421,0.00039374,7]
[322108064,1712782247281,-152.94150947,0.00039494,4]
[322108066,1712782247290,-559.0,0.00039512,20]
[322108068,1712782247299,-357.0,0.00039512,20]
[322108070,1712782247308,-169.93133649,0.00039538,7]
[322108072,1712782247317,-152.33080863,0.00039581,7]
[322108074,1712782247326,-152.93894231,0.00039622,7]
[322108076,1712782247335,-199.77633928,0.00039681,7]
[322108078,1712782247344,-151.15859251,0.0003973,7]
[322108080,1712782247353,-314.041105,0.00039748,26]
[322108082,1712782247363,-316.00688421,0.00039792,7]
[322108084,1712782247372,-150.0,0.00039798,2]
[322108086,1712782247381,-628.041105,0.00039848,17]
[322108088,1712782247390,-216.14343251,0.00039873,7]
[322108090,1712782247399,-176.49461477,0.00039877,7]
[322108092,1712782247408,-559.0,0.00039899,20]
[322108094,1712782247417,-357.0,0.00039899,20]
[322108096,1712782247426,-337.91296202,0.00039917,7]
[322108098,1712782247436,-7920.2851541,0.00039973,2]
[322108100,1712782247445,-15531.3549308,0.00039973,2]
[322108102,1712782247454,-150.0,0.00039999,2]
[322108104,1712782247463,-2850.45909534,0.0004,5]
[322108106,1712782247473,-22119.63160453,0.0004,4]
[322108108,1712782247482,-192.98174276,0.0004,2]
[322108110,1712782247491,-300.0,0.0004,7]
[322108112,1712782247501,-1573.4442293,0.0004,60]
[322108114,1712782247510,-2688.0,0.0004,14]
[322108116,1712782247519,-2688.0,0.0004,14]
[322108118,1712782247530,-2688.0,0.0004,14]
[322108120,1712782247539,-2688.0,0.0004,14]
[322108122,1712782247548,-2688.0,0.0004,14]
[322108124,1712782247557,-2688.0,0.0004,14]
[322108126,1712782247566,-2688.0,0.0004,14]
[322108128,1712782247576,-2688.0,0.0004,14]
[322108130,1712782247585,-1776.73,0.0004,14]
[322108132,1712782247594,-165.0,0.0004,20]
[322108134,1712782247603,-9200.0,0.0004,10]
[322108137,1712782247613,-1936.78769521,0.0004,2]
[322108138,1712782247622,-500.0,0.0004,4]
[322108140,1712782247631,-221.09477261,0.00040005,30]
[322108143,1712782247641,-422.23437662,0.00040093,30]
[322108145,1712782247650,-221.09477261,0.00040181,30]
[322108147,1712782247664,-337.91296202,0.00040207,30]
[322108149,1712782247673,-153.24506346,0.00040218,30]
[322108151,1712782247682,-180.30208066,0.00040222,30]
[322108153,1712782247691,-531.0,0.00040273,7]
[322108155,1712782247700,-152.94150947,0.00040274,7]
[322108157,1712782247709,-151.22,0.0004029,2]
[322108159,1712782247718,-152.93894231,0.00040311,30]
[322108161,1712782247727,-150.5479434,0.0004038,30]
[322108163,1712782247736,-216.14343251,0.00040446,30]
[322108165,1712782247745,-216.14343251,0.00040536,30]
[322108166,1712782247754,-316.00688421,0.00040631,30]
[322108167,1712782247762,-422.23437662,0.00040637,30]
[322108168,1712782247771,-150.0,0.00040663,2]
[322108169,1712782247779,-221.09477261,0.00040676,30]
[322108170,1712782247788,-337.91296202,0.00040688,30]
[322108171,1712782247797,-314.041105,0.00040748,29]
[322108172,1712782247807,-352.2,0.00040767,15]
[322108173,1712782247816,-449.81,0.00040842,2]
[322108174,1712782247825,-628.041105,0.00040848,18]
[322108176,1712782247834,-316.00688421,0.00040915,30]
[322108178,1712782247844,-163.92560824,0.00040945,30]
[322108180,1712782247853,-150.0,0.00040999,2]
[322108182,1712782247862,-750.0,0.00041,3]
[322108184,1712782247871,-337.91296202,0.0004102,30]
[322108186,1712782247880,-151.15859251,0.00041022,30]
[322108188,1712782247889,-337.91296202,0.00041036,30]
[322108190,1712782247899,-152.94150947,0.00041055,10]
[322108192,1712782247908,-152.93894231,0.00041087,30]
[322108194,1712782247918,-157.0,0.00041096,2]
[322108196,1712782247927,-222.65123,0.000412,2]
[322108198,1712782247936,-199.77633928,0.00041227,30]
[322108200,1712782247945,-150.5479434,0.00041293,30]
[322108202,1712782247954,-169.93133649,0.00041323,30]
[322108204,1712782247963,-10554.1618073,0.00041419,15]
[322108206,1712782247971,-150.683,0.00041449,30]
[322108208,1712782247981,-153.80423253,0.00041495,30]
[322108210,1712782247991,-150.0,0.00041528,2]
[322108212,1712782248004,-199.77633928,0.00041537,30]
[322108214,1712782248014,-153.80423253,0.00041542,30]
[322108216,1712782248024,-167.00107982,0.00041594,30]
[322108218,1712782248034,-1000.0,0.00041663,2]
[322108220,1712782248043,-154.17814325,0.00041717,30]
[322108222,1712782248052,-199.77633928,0.00041747,30]
[322108224,1712782248062,-314.041105,0.00041748,32]
[322108226,1712782248071,-422.23437662,0.00041787,30]
[322108228,1712782248081,-154.17814325,0.00041808,30]
[322108230,1712782248091,-152.94150947,0.00041835,13]
[322108232,1712782248100,-166.80797734,0.0004184,30]
[322108234,1712782248109,-628.041105,0.00041848,19]
[322108236,1712782248118,-166.66666666,0.0004186,30]
[322108238,1712782248127,-153.24506346,0.00041868,30]
[322108240,1712782248136,-155.00001222,0.00041884,30]
[322108242,1712782248145,-152.33080863,0.00041893,30]
[322108244,1712782248155,-153.24506346,0.00041955,30]
[322108246,1712782248164,-337.91296202,0.00041959,30]
[322108248,1712782248173,-150.0,0.00041999,60]
[322108250,1712782248182,-100000.0,0.00042,42]
[322108252,1712782248191,-8013.92540293,0.00042,2]
[322108266,1712782248303,-60364.9487747,0.00042,120]
[322108268,1712782248313,-216.14343251,0.00042214,30]
[322108270,1712782248324,-153.24506346,0.00042367,30]
[322108272,1712782248333,-159.29221084,0.00042393,30]
[322108274,1712782248343,-150.0,0.00042394,2]
[322108276,1712782248352,-153.24506346,0.00042415,30]
[322108278,1712782248361,-221.09477261,0.00042424,30]
[322108280,1712782248371,-221.09477261,0.00042587,30]
[322108282,1712782248380,-152.94150947,0.00042616,16]
[322108284,1712782248390,-216.14343251,0.00042619,30]
[322108286,1712782248400,-153.8105693,0.00042632,30]
[322108288,1712782248409,-221.09477261,0.00042688,30]
[322108290,1712782248418,-163.39883742,0.00042718,30]
[322108292,1712782248428,-314.041105,0.00042748,33]
[322108294,1712782248437,-156.73458951,0.00042786,30]
[322108296,1712782248446,-628.041105,0.00042848,20]
[322108298,1712782248456,-994.47294047,0.0004289,10]
[322108300,1712782248466,-150.5479434,0.00042953,30]
[322108302,1712782248475,-100000.0,0.00043,43]
[322108304,1712782248485,-3022.56412758,0.00043,4]
[322108306,1712782248493,-800.0,0.00043,3]
[322108308,1712782248503,-337.91296202,0.00043088,30]
[322108310,1712782248513,-199.77633928,0.00043103,30]
[322108312,1712782248523,-449.81,0.00043106,2]
[322108314,1712782248532,-221.09477261,0.00043113,30]
[322108316,1712782248541,-161.95655027,0.00043222,30]
[322108318,1712782248551,-150.0,0.00043259,2]
[322108320,1712782248560,-221.09477261,0.00043376,30]
[322108322,1712782248570,-152.94150947,0.00043396,19]
[322108324,1712782248583,-199.77633928,0.0004349,30]
[322108326,1712782248591,-352.2,0.00043507,15]
[322108328,1712782248600,-221.09477261,0.00043507,30]
[322108330,1712782248609,-221.09477261,0.00043565,30]
[322108332,1712782248618,-152.33080863,0.00043607,30]
[322108334,1712782248627,-422.23437662,0.00043607,30]
[322108336,1712782248636,-216.14343251,0.00043647,30]
[322108338,1712782248646,-10554.1618073,0.00043722,18]
[322108340,1712782248656,-199.77633928,0.00043735,30]
[322108342,1712782248665,-314.041105,0.00043748,43]
[322108344,1712782248675,-163.92560826,0.00043775,30]
[322108346,1712782248684,-2186.85,0.00043836,2]
[322108348,1712782248694,-1942.12,0.00043836,2]
[322108350,1712782248704,-153.80423253,0.00043847,30]
[322108352,1712782248713,-628.041105,0.00043848,21]
[322108354,1712782248722,-221.09477261,0.0004389,30]
[322108356,1712782248732,-154.17814325,0.00043913,30]
[322108358,1712782248740,-100000.0,0.00044,44]
[322108360,1712782248750,-10000.0,0.00044,4]
[322108362,1712782248759,-422.23437662,0.00044032,30]
[322108364,1712782248768,-150.5479434,0.00044069,30]
[322108366,1712782248777,-153.13,0.000441,4]
[322108368,1712782248786,-153.13,0.000441,4]
[322108370,1712782248795,-150.0,0.00044124,2]
[322108373,1712782248805,-152.93894231,0.00044127,30]
[322108375,1712782248814,-150.5479434,0.00044154,30]
[322108376,1712782248823,-151.15859251,0.00044157,30]
[322108378,1712782248833,-153.80423253,0.00044169,30]
[322108380,1712782248842,-152.94150947,0.00044177,22]
[322108382,1712782248852,-216.14343251,0.00044368,30]
[322108384,1712782248861,-172.20085591,0.00044576,30]
[322108386,1712782248871,-199.77633928,0.00044591,30]
[322108388,1712782248880,-216.14343251,0.000446,30]
[322108390,1712782248889,-330.71,0.00044701,2]
[322108392,1712782248899,-298.67,0.00044701,2]
[322108394,1712782248908,-314.041105,0.00044748,44]
[322108396,1712782248918,-152.33080863,0.00044831,30]
[322108399,1712782248928,-153.24506346,0.00044834,30]
[322108400,1712782248939,-628.041105,0.00044848,22]
[322108403,1712782248950,-150.5479434,0.00044848,30]
[322108404,1712782248959,-216.14343251,0.00044888,30]
[322108406,1712782248968,-337.91296202,0.00044901,30]
[322108408,1712782248978,-1162.031073,0.00044931,30]
[322108411,1712782248988,-8544.916333,0.00044931,30]
[322108413,1712782249003,-344.1279,0.00044931,30]
[322108414,1712782249013,-160.025887,0.00044931,30]
[322108416,1712782249022,-160.025886,0.00044931,30]
[322108418,1712782249032,-152.94150947,0.00044957,25]
[322108421,1712782249043,-5000.0,0.00044986,4]
[322108422,1712782249053,-150.0,0.00044989,2]
[322108424,1712782249062,-100000.0,0.00045,45]
[322108426,1712782249071,-210.37183016,0.00045,120]
[322108429,1712782249082,-354.40909799,0.00045,120]
[322108431,1712782249092,-168.71198808,0.00045,4]
[322108433,1712782249101,-204.82688697,0.00045,120]
[322108435,1712782249111,-48181.19859887,0.00045,8]
[322108437,1712782249121,-6000.0,0.00045,120]
[322108439,1712782249130,-500.0,0.00045,7]
[322108440,1712782249140,-150.0,0.00045,85]
[322108443,1712782249150,-19941.08940699,0.00045,30]
[322108445,1712782249160,-850.0,0.00045,3]
[322108447,1712782249170,-153.80423253,0.00045048,30]
[322108449,1712782249180,-221.09477261,0.00045094,30]